Cogmind - Beta 10.2 @@@ ROGUE MODE // 2021.02.20 @ 17:43:30 Player: aperiodic Result: Self-destructed Performance ------------- Evolutions (5) 2500 Regions Visited (27) 5400 Robots Destroyed (317) 1585 Value Destroyed (9872) 9872 Prototype IDs (61) 1220 Alien Tech Used (1) 200 Bonus (4625) 4625 TOTAL SCORE: 25402 Bonus ------- High Alert Combat Kills 528 Follower Combat Kills 817 Met Data Miner 300 Met Imprinter 300 Exposed GOLEM Chamber 500 Met Warlord at Base 500 MAIN.C Attacked Warlord 500 Warlord Defense Kill 1398 Friendly Fire -218 Cogmind --------- Core Integrity 274/1000 Matter 300/300 Energy 100/100 System Corruption 0% Temperature Cool (0) Movement Core (1100) Ox21 Location -4/Proximity Caves Parts ------- > --- POWER (1) -------- (None) > --- PROPULSION (4) --- (None) > --- UTILITY (9) ------ High-capacity Storage Unit High-capacity Storage Unit Experimental Signal Interpreter > --- WEAPON (4) ------- (None) > --- INVENTORY (20) --- Vortex Chain Reactor High-capacity Storage Unit Zionite Biocell (1000) High-capacity Matter Pod (200) Experimental Armor Integrity Analyzer Force Field Ghost Barrier GOLEM Unit BFG-9k Vortex Edition Peak State ------------ > --- POWER ------------ Zionite Light DM Reactor > --- PROPULSION ------- Experimental Myomer Leg Experimental Myomer Leg Armored Huge Wheel > --- UTILITY ---------- High-capacity Storage Unit High-capacity Storage Unit Experimental Signal Interpreter Experimental Phase Shifter Assembled Alloy Armor Improved Powered Armor Force Field Advanced Hacking Suite Advanced Hacking Suite > --- WEAPON ----------- Vortex Driver Assembled Focal Cannon Mini Smartbomb Launcher CR-A16's Pointy Stick > --- INVENTORY -------- Vortex Chain Reactor Experimental Heat Sink High-capacity Storage Unit Zionite Biocell High-capacity Matter Pod Experimental Sensor Array Experimental Armor Integrity Analyzer Improved Powered Armor GOLEM Unit Vortex Rail BFG-9k Vortex Edition [Rating: 129] Favorites ----------- Power F-cell Engine Engine F-cell Engine Power Core Light Nuclear Core Reactor Zionite Light DM Reactor Propulsion Light Treads Treads Light Treads Leg Assembled Alloy Leg Wheel Armored Huge Wheel Hover Unit Combat Gravmag System Flight Unit Improved VTOL Module Utility Advanced Hacking Suite Device Experimental Sensor Array Storage High-capacity Storage Unit Processor Advanced Signal Interpreter Hackware Advanced Hacking Suite Protection Hardened Light Armor Plating Weapon Tesla Bomb Launcher Energy Gun Improved EM Shotgun Energy Cannon Assembled Focal Cannon Ballistic Gun Autogun Ballistic Cannon Bore Cannon Launcher Tesla Bomb Launcher Special Weapon Improved Remote Datajack Slashing Weapon Greatsword Piercing Weapon CR-A16's Pointy Stick Build | -11 -10 -10 -9 -9 -9 -8 -8 -7 -7 -7 -7 -7 -7 -6 -6 -6 -6 -6 -6 -6 -6 -5 -5 -5 -5 -5 -4 ------- Run | Scr Mat Min Mat Min Exi Min Mat Fac Was Fac Low Low Dat Pro Fac Was Fac Low Low Zio Dee Pro Fac Upp Upp War Pro Slots Evolved 10 | . . . 2 . . . 2 2 . . . . . . 2 . . . . . . . 2 . . . . Power . | . . . . . . . . . . . . . . . . . . . . . . . . . . . . Propulsion 2 | . . . . . . . . . . . . . . . . . . . . . . . 2 . . . . Utility 7 | . . . 2 . . . 1 2 . . . . . . 2 . . . . . . . . . . . . Weapon 1 | . . . . . . . 1 . . . . . . . . . . . . . . . . . . . . Parts Attached 337 | 7 35 4 13 2 . 14 58 56 2 11 6 1 . 1 10 . 11 1 2 27 32 . 22 3 3 15 1 Power 26 | 1 1 . 1 . . 2 3 4 . 1 1 . . . 1 . . . . 4 4 . 2 1 . . . Engine 13 | 1 1 . 1 . . . 3 4 . . 1 . . . 1 . . . . 1 . . . . . . . Core 5 | . . . . . . 2 . . . 1 . . . . . . . . . 2 . . . . . . . Reactor 8 | . . . . . . . . . . . . . . . . . . . . 1 4 . 2 1 . . . Propulsion 72 | 3 18 2 2 . . 2 22 5 1 2 . . . . 2 . . . . 4 2 . 3 . . 4 . Treads 35 | . 11 2 2 . . 2 11 2 . . . . . . . . . . . 4 . . 1 . . . . Leg 3 | . . . . . . . . . . . . . . . . . . . . . . . . . . 3 . Wheel 27 | 3 7 . . . . . 11 3 . . . . . . . . . . . . . . 2 . . 1 . Hover 5 | . . . . . . . . . 1 . . . . . 2 . . . . . 2 . . . . . . Flight 2 | . . . . . . . . . . 2 . . . . . . . . . . . . . . . . . Utility 133 | 1 3 1 5 1 . 2 8 32 1 7 2 1 . 1 4 . 6 . . 12 18 . 16 1 3 7 1 Device 51 | . 1 . . . . . 1 15 1 7 2 1 . 1 . . 3 . . 3 5 . 5 . . 5 1 Storage 22 | 1 2 1 3 1 . . 2 . . . . . . . 1 . 1 . . . 4 . 5 . . 1 . Processor 11 | . . . . . . . 1 6 . . . . . . 1 . . . . 1 . . 1 . 1 . . Hackware 15 | . . . . . . . . 9 . . . . . . 1 . . . . 1 . . 4 . . . . Protection 34 | . . . 2 . . 2 4 2 . . . . . . 1 . 2 . . 7 9 . 1 1 2 1 . Artifact . | . . . . . . . . . . . . . . . . . . . . . . . . . . . . Weapon 106 | 2 13 1 5 1 . 8 25 15 . 1 3 . . . 3 . 5 1 2 7 8 . 1 1 . 4 . Energy Gun 12 | 1 6 . 2 . . . . . . . . . . . . . . . . . 1 . . . . 2 . Energy Cannon 13 | . . . . . . . . . . . 1 . . . . . 4 1 1 2 2 . . . . 2 . Ballistic Gun 32 | 1 5 1 1 1 . 4 14 5 . . . . . . . . . . . . . . . . . . . Ballistic Cannon 9 | . . . 2 . . 2 2 3 . . . . . . . . . . . . . . . . . . . Launcher 20 | . . . . . . 2 7 2 . 1 . . . . 1 . 1 . 1 2 2 . . 1 . . . Special Weapon 3 | . 1 . . . . . . . . . . . . . 1 . . . . . . . 1 . . . . Impact Weapon . | . . . . . . . . . . . . . . . . . . . . . . . . . . . . Slashing Weapon 10 | . 1 . . . . . 2 3 . . 1 . . . 1 . . . . 1 1 . . . . . . Piercing Weapon 7 | . . . . . . . . 2 . . 1 . . . . . . . . 2 2 . . . . . . Special Melee Weapon . | . . . . . . . . . . . . . . . . . . . . . . . . . . . . Unidentified Prototypes 17 | . . . 1 . . . . 1 . . . 1 . . . . . . . . 8 . 1 . . 5 . Parts Lost 57 | . 4 1 . 1 . 9 7 4 . 1 . . . . . . . . . 5 3 . 1 4 1 6 10 Power 6 | . . . . . . 2 1 . . . . . . . . . . . . 1 . . . 1 . 1 . Propulsion 10 | . 1 1 . . . 2 2 . . 1 . . . . . . . . . . . . . . . 1 2 Utility 20 | . . . . . . 2 2 1 . . . . . . . . . . . 2 2 . 1 1 1 1 7 Weapon 21 | . 3 . . 1 . 3 2 3 . . . . . . . . . . . 2 1 . . 2 . 3 1 Highest Loss Streak 9 | . 2 1 . 1 . 5 2 4 . 1 . . . . . . . . . 2 2 . 1 4 1 4 9 Average Slot Usage (%) 88 | . 97 100 99 99 100 98 89 68 69 70 84 84 85 85 83 87 93 93 93 87 88 93 92 80 82 87 41 Engine 4 | . 14 14 11 11 11 2 7 2 . . . 7 7 7 6 6 6 6 6 5 . . . . . . . Reactor 1 | . . . . . . . . . . . . . . . . . . . . . 5 6 5 5 5 4 . Treads 7 | . 16 28 22 22 22 21 9 . . . . . . . . . . . . 8 5 . 3 . . . . Leg 1 | . . . . . . . . . . . . . . . . . . . . . 5 12 8 . . 5 1 Wheel 1 | . 11 . . . . . 8 2 . . . . . . . . . . . . . . 2 11 11 7 1 Hover 1 | . . . . . . . . . 7 1 . . . . 5 12 12 12 12 3 . . . . . . . Flight 1 | . . . . . . . . . . 7 15 14 14 14 6 . . . . . . . . . . . . Device 6 | . 7 . . . . . . 6 7 7 7 6 7 7 6 6 5 12 12 11 13 12 4 5 5 6 2 Storage 10 | . 18 28 22 22 22 22 18 5 . . . . . . 1 6 6 6 6 6 8 12 10 11 11 11 11 Processor 7 | . . . . . . . 8 15 15 15 15 14 14 14 15 12 12 6 6 6 7 6 5 5 5 5 5 Hackware 13 | . . . . . . . . 19 30 30 30 28 28 28 30 31 31 31 31 14 6 6 21 16 16 13 4 Protection 8 | . . . 21 22 22 21 10 1 . . . . . . . . . . . 7 13 18 6 10 10 12 5 Energy Gun 1 | . 8 . 14 11 11 . . . . . . . . . . . . . . . . . . . . . 1 Energy Cannon 2 | . . . . . . . . . . . . . . . . . 5 9 9 4 8 6 5 5 5 7 . Ballistic Gun 5 | . 16 26 4 10 11 15 25 6 . . . . . . . . . . . . . . . . . . . Launcher 3 | . . . . . . . . . . . . . . . 2 6 7 8 8 13 4 6 5 3 5 4 . Slashing Weapon 1 | . 1 1 . . . . . 1 . . . . . . 5 6 4 . . . 2 . . . . . . Piercing Weapon 2 | . . . . . . . . 3 7 7 7 14 14 14 . . . . . 1 3 6 5 5 5 5 5 Naked Turns . | . . . . . . . . . . . . . . . . . . . . . . . . . . . . Heaviest Build 138 | 13 43 41 88 88 88 91 101 102 3 8 9 9 9 9 43 43 55 45 45 92 64 56 80 80 83 138 105 Greatest Support 70 | 26 40 40 40 40 40 40 42 40 3 12 12 12 12 12 50 50 50 50 50 56 70 60 60 56 56 56 28 Greatest Overweight (x) 43 | . 2 2 2 2 2 2 10 4 . 1 . . . . 1 . 1 . . 1 1 . 2 1 1 43 22 Average Overweight (x) . | . . . 1 2 2 2 3 . . . . . . . . . . . . . . . . 1 1 2 6 Largest Inventory Capacity 20 | 6 16 16 20 20 20 20 20 20 4 4 4 4 4 4 10 10 10 8 8 8 8 8 12 12 12 20 20 Average Capacity 10 | 5 10 16 18 20 20 20 20 10 4 4 4 4 4 4 5 10 8 8 8 8 6 8 8 12 12 17 20 Most Carried 20 | 6 16 16 20 20 19 20 20 20 4 4 4 4 4 4 8 8 10 8 8 8 8 8 11 11 8 20 17 Average Carried 10 | 3 9 15 17 19 19 15 18 9 4 3 3 4 4 4 4 8 7 7 8 7 5 7 7 8 7 14 16 Final Capacity 20 | 6 16 16 20 20 20 20 20 4 4 4 4 4 4 4 10 10 8 8 8 8 8 8 12 12 12 20 20 Final Carried 20 | 5 16 15 20 19 19 14 20 4 4 4 4 4 4 4 8 8 7 8 8 7 8 8 11 8 8 17 16 Class Distribution -------------------- 18% | Mutant 15% | Hauler-Mutant 15% | Hacker-Mutant 11% | Wizard-Mutant 9% | Machinist-Mutant 8% | Hacker-Sprinter 4% | Wizard-Gladiator 4% | Hauler-Gunner 3% | Scavenger-Mutant Dominant Class ---------------- Mutant | -10/Materials Mutant | -10/Mines Hauler-Mutant | -9/Materials Hauler-Mutant | -9/Mines Hauler-Mutant | -9/Exiles Hauler-Mutant | -8/Mines Hauler-Gunner | -8/Materials Hacker-Mutant | -7/Factory Hacker-Mutant | -7/Waste Hacker-Mutant | -7/Factory Hacker-Sprinter | -7/Lower Caves Hacker-Sprinter | -7/Lower Caves Hacker-Sprinter | -7/Data Miner Hacker-Sprinter | -6/Proximity Caves Wizard-Sprinter | -6/Factory Wizard-Gladiator | -6/Waste Wizard-Gladiator | -6/Factory Wizard-Mutant | -6/Lower Caves Wizard-Mutant | -6/Lower Caves Machinist-Mutant | -6/Zion Mutant | -6/Deep Caves Mutant | -5/Proximity Caves Hacker-Mutant | -5/Factory Hacker-Mutant | -5/Upper Caves Hacker-Mutant | -5/Upper Caves Machinist-Mutant | -5/Warlord Hauler-Mutant | -4/Proximity Caves Resources | -11 -10 -10 -9 -9 -9 -8 -8 -7 -7 -7 -7 -7 -7 -6 -6 -6 -6 -6 -6 -6 -6 -5 -5 -5 -5 -5 -4 ----------- Run | Scr Mat Min Mat Min Exi Min Mat Fac Was Fac Low Low Dat Pro Fac Was Fac Low Low Zio Dee Pro Fac Upp Upp War Pro Matter Collected 8475 | 285 591 345 314 100 . 372 1928 960 64 55 325 20 . 10 95 . 230 210 55 1021 448 56 354 169 54 328 86 Remotely . | . . . . . . . . . . . . . . . . . . . . . . . . . . . . Salvage Created 11721 | 96 734 113 646 422 . 490 2077 826 . 168 118 47 . . 627 . 403 170 284 719 713 529 1794 408 91 144 102 Parts 630 | 5 51 11 38 40 . 38 124 46 . 13 1 4 . . 24 . 23 3 13 40 26 24 86 8 4 5 3 Haulers Intercepted 15 | . 2 . 4 . . . 6 1 . . . . . . 1 . . . . . . . 1 . . . . Recyclers Shooed 8 | . 1 . 2 . . . 3 1 . . . . . . . . . . . . . . 1 . . . . Parts Field Recycled . | . . . . . . . . . . . . . . . . . . . . . . . . . . . . Retrieved Matter . | . . . . . . . . . . . . . . . . . . . . . . . . . . . . Parts Self-Destructed 119 | . . . . . . . . . . . . 11 . 2 . . . . 2 8 . 8 . 2 5 78 3 Prevented 46 | . . . . . . . . . . . . . . . . . . . 11 . . 15 . 7 . 13 . Kills | -11 -10 -10 -9 -9 -9 -8 -8 -7 -7 -7 -7 -7 -7 -6 -6 -6 -6 -6 -6 -6 -6 -5 -5 -5 -5 -5 -4 ------- Run | Scr Mat Min Mat Min Exi Min Mat Fac Was Fac Low Low Dat Pro Fac Was Fac Low Low Zio Dee Pro Fac Upp Upp War Pro Combat Hostiles Destroyed 207 | . 15 7 9 14 . 17 41 11 . 6 . 1 . . . . 3 6 4 4 11 8 24 6 8 10 2 Melee 14 | . . . . . . . 3 2 . 1 . 1 . . . . 3 . . 1 1 . . . . . 2 Guns 74 | . 15 7 7 14 . 7 16 5 . . . . . . . . . . . . . . . . . 3 . Cannons 25 | . . . 2 . . 1 1 . . . . . . . . . . . 1 1 . 3 12 2 . 2 . AOE 80 | . . . . . . 9 21 4 . 5 . . . . . . . 5 2 1 7 2 8 3 8 5 . Classes Destroyed 26 | 2 6 . 2 . . 2 3 1 . . 1 . . . . . . 1 . 1 3 1 . . . 3 . Worker 28 | . 2 . 2 1 . . 8 5 . 2 . . . . 1 . 5 . . . . . 2 . . . . Builder 6 | . . . . . . . 3 . . 1 . . . . . . . . . . . . 2 . . . . Tunneler 6 | 1 . . . 2 . 1 1 . . . . . . . . . 1 . . . . . . . . . . Hauler 15 | . 2 . 4 . . . 6 1 . . . . . . 1 . . . . . . . 1 . . . . Recycler 12 | 1 . . 1 . . . 1 4 . . . . . . 3 . 1 . . . . . 1 . . . . Minesweeper 1 | . . . . . . . . . . . . . . . . . . . . . . 1 . . . . . Mechanic 2 | . . . . . . . 2 . . . . . . . . . . . . . . . . . . . . Operator 6 | . 1 . 2 . . . 3 . . . . . . . . . . . . . . . . . . . . Watcher 17 | . 2 . 2 . . . 4 2 . . . . . . 3 . 1 . . . . . 3 . . . . Swarmer 55 | . 3 7 6 10 . 6 6 4 . 3 . . . . . . . . . . . . 5 . 5 . . Saboteur 1 | . . . . . . . . . . . . . . . . . . . . . . . . . . 1 . Grunt 84 | . 12 . 1 4 . 9 24 3 . 2 . 1 . . . . . . 3 . . 4 10 3 2 6 . Brawler 4 | . . . . . . 1 1 1 . . . . . . . . . . . . . . . 1 . . . Duelist 5 | . . . . . . 1 2 . . . . . . . . . . . . . . 1 . . 1 . . Sentry 12 | . . . 2 . . . 7 . . 1 . . . . . . . . 1 . . . 1 . . . . Hunter 7 | . . . . . . . 1 1 . . . . . . . . . . . . . 1 2 . . . 2 Programmer 15 | . . . . . . . . 2 . . . . . . . . 3 . . . . 2 6 2 . . . Striker 1 | . . . . . . . . . . . . . . . . . . . . . . . . . . 1 . Executioner 2 | . . . . . . . . . . . . . . . . . . . . . . . . . . 2 . Zionite 21 | . . . 1 . . . . . . . . . . . . . . . . 20 . . . . . . . Z-Technician 5 | . . . . . . . . . . . . . . . . . . . . . 5 . . . . . . Z-Light 6 | . . . . . . . . . . . . . . . . . . . . . 6 . . . . . . Decomposer 3 | . . . . . . . . . . . 1 . . . . . . 2 . . . . . . . . . Samaritan 2 | . . . . . . . . . . . 2 . . . . . . . . . . . . . . . . Tinkerer 1 | . . . . . . . . . . . . . . . . . . . . 1 . . . . . . . Assembled 3 | . . . . . . . . . . . . . . . . . . . . . 3 . . . . . . Golem 2 | . . . . . . . . . . . . . . . . . . . . . 2 . . . . . . Thug 1 | . . . . . . . . . . . . . . . . . . . . 1 . . . . . . . Savage 1 | . . . . . . . . . . . . . . . . . . 1 . . . . . . . . . Butcher 6 | . . . . . . . . . . . . . . . . . . 4 . 2 . . . . . . . Mutant 2 | . . . . . . . . . . . . . . . . . . 1 . 1 . . . . . . . Best Kill Streak 16 | 2 3 3 5 5 . 5 16 4 . 8 . 1 . . 4 . 3 5 3 4 6 4 13 5 5 8 1 Combat Bots Only 11 | . 3 3 2 4 . 5 11 4 . 6 . 1 . . . . 1 5 3 2 6 4 6 4 5 8 1 Max Kills in Single Turn 5 | 1 1 2 2 2 . 2 3 3 . 3 1 1 . . 1 . 1 3 1 2 2 1 5 2 3 2 1 Gunslinging 1 | . . 1 1 1 . . . . . . . . . . . . . . . . . . . . . . . Exploded 3 | . . . . . . 2 2 3 . 2 . . . . . . . 3 1 1 2 1 3 1 3 2 . Melee 1 | . . . . . . . 1 1 . 1 . 1 . . . . 1 . . 1 1 . . . . . 1 Uniques/NPCs Destroyed 1 | . . . . . . . . . . . . . . . . . . . . 1 . . . . . . . Imprinter (-6/Zion) Combat | -11 -10 -10 -9 -9 -9 -8 -8 -7 -7 -7 -7 -7 -7 -6 -6 -6 -6 -6 -6 -6 -6 -5 -5 -5 -5 -5 -4 -------- Run | Scr Mat Min Mat Min Exi Min Mat Fac Was Fac Low Low Dat Pro Fac Was Fac Low Low Zio Dee Pro Fac Upp Upp War Pro Damage Taken 13665 | . 591 365 366 429 . 1020 2237 1289 27 241 . . . 37 . . 176 . 183 1826 454 198 707 536 60 1161 1762 Core 1846 | . 67 20 18 27 . 153 112 406 27 126 . . . . . . 30 . 30 85 . 19 36 97 10 140 443 Absorbed by Shields . | . . . . . . . . . . . . . . . . . . . . . . . . . . . . Core Remaining (%) 65 | 100 . 65 . . . 50 79 . . . . . . 20 . . . . . . . 80 . . . . . Volleys Fired 681 | 5 68 12 42 27 . 47 117 36 . 3 . . . . 1 . 13 16 8 105 19 24 87 16 7 19 9 Largest 3 | 2 2 2 2 2 . 2 3 3 . 1 . . . . 1 . 1 1 2 1 3 1 1 1 1 1 1 Hottest 225 | 70 100 46 90 90 . 80 80 105 . 39 . . . . 30 . 90 90 150 75 225 46 46 46 80 100 45 Shots Fired 1104 | 10 130 26 84 52 . 84 289 92 . 3 . . . . 1 . 13 16 11 105 25 24 87 16 7 20 9 Gun 690 | 10 129 26 63 52 . 63 258 77 . . . . . . . . . . . . . . . . . 3 9 Cannon 224 | . . . 21 . . 14 3 11 . . . . . . . . 13 8 6 21 17 16 73 11 . 10 . Launcher 186 | . . . . . . 7 28 4 . 3 . . . . . . . 8 5 84 8 8 12 5 7 7 . Special 4 | . 1 . . . . . . . . . . . . . 1 . . . . . . . 2 . . . . Kinetic 594 | 5 75 26 44 20 . 75 261 88 . . . . . . . . . . . . . . . . . . . Thermal 173 | 5 43 . . . . . . . . . . . . . . . 13 3 . . 8 16 73 11 . 1 . Explosive 64 | . . . . . . 7 28 4 . 3 . . . . . . . 8 . . . . . . 7 7 . Electromagnetic 249 | . 12 . 40 32 . 2 . . . . . . . . . . . 5 11 105 17 8 12 5 . . . Entropic 21 | . . . . . . . . . . . . . . . . . . . . . . . . . . 12 9 Robot Hit Streak 20 | 7 12 6 9 15 . 9 19 4 . 2 . . . . 3 . . 6 8 12 9 7 17 10 12 20 1 Robot Miss Streak 5 | 1 3 3 4 4 . 2 4 3 . 1 . . . . . . . 1 1 4 2 5 3 3 . 1 4 Penetration Max . | . . . . . . . . . . . . . . . . . . . . . . . . . . . . Secondary Targets 8 | . . 1 1 3 . 1 2 . . . . . . . . . . . . . . . . . . . . Max Gunslinging Chain 1 | . . 1 1 1 . 1 1 . . . . . . . . . . . . . . . . . . . . Shots Hit Robots 717 | 8 77 14 57 35 . 55 180 72 . 5 5 1 . . 14 . 15 9 6 29 29 15 49 11 2 16 13 Core Hits 506 | 3 38 7 30 23 . 33 129 39 . 9 4 1 . . 8 . 9 15 7 25 24 8 39 10 14 27 4 Critical Hits 18 | . . . . . . 4 5 7 . . . . . . . . 1 . . . . . . . . . 1 Critical Kills 6 | . . . . . . 1 1 3 . . . . . . . . 1 . . . . . . . . . . Critical Parts Destroyed 12 | . . . . . . 3 4 4 . . . . . . . . . . . . . . . . . . 1 Melee Attacks 169 | . 4 . . . . . 8 37 1 15 5 5 . 1 23 . 29 . . . 21 1 5 . . . 14 Impact . | . . . . . . . . . . . . . . . . . . . . . . . . . . . . Slashing 86 | . 4 . . . . . 8 13 . . . . . . 22 . 29 . . . 10 . . . . . . Piercing 83 | . . . . . . . . 24 1 15 5 5 . 1 1 . . . . . 11 1 5 . . . 14 Sneak Attacks 34 | . . . . . . . . 10 . 2 3 . . . 5 . 7 . . . 7 . . . . . . Combat Hostiles . | . . . . . . . . . . . . . . . . . . . . . . . . . . . . Follow-up Attacks . | . . . . . . . . . . . . . . . . . . . . . . . . . . . . Damage Inflicted 34479 | 98 961 207 1104 488 . 1648 6173 2670 . 761 542 42 . . 1241 . 1615 1249 389 2096 2514 1370 3933 1303 1133 2453 489 Guns 5946 | 98 908 183 757 399 . 641 2131 576 . . . . . . . . . . . . . . . . . 128 125 Cannons 5995 | . . . 223 . . 132 75 78 . . . . . . . . . 218 106 400 430 627 2291 650 . 765 . Explosions 15286 | . . . 69 61 . 793 3652 603 . 545 . . . . . . . 1031 283 1680 838 743 1642 653 1133 1560 . Melee 6930 | . 27 . . . . . 224 1413 . 216 542 42 . . 1241 . 1615 . . . 1246 . . . . . 364 Ramming 322 | . 26 24 55 28 . 82 91 . . . . . . . . . . . . 16 . . . . . . . Kinetic 4895 | 48 479 183 467 104 . 754 2206 654 . . . . . . . . . . . . . . . . . . . Thermal 4876 | 50 325 . 69 61 . 154 . . . . . . . . . . . 101 . 97 365 627 2291 736 . . . Explosive 9092 | . . . . . . 639 3581 603 . 545 . . . . . . . 1031 . . . . . . 1133 1560 . Electromagnetic 7346 | . 104 . 513 295 . 19 71 . . . . . . . . . . 117 389 1983 903 743 1642 567 . . . Impact . | . . . . . . . . . . . . . . . . . . . . . . . . . . . . Slashing 4337 | . 27 . . . . . 224 417 . . . . . . 1126 . 1615 . . . 928 . . . . . . Piercing 2593 | . . . . . . . . 996 . 216 542 42 . . 115 . . . . . 318 . . . . . 364 Entropic 1018 | . . . . . . . . . . . . . . . . . . . . . . . . . . 893 125 Highest Corruption 14 | . 5 5 . . . . . 5 13 14 14 . . . . . . . . 2 2 2 3 6 6 6 . Average Corruption 3 | . 3 5 . . . . . 3 11 13 5 . . . . . . . . 1 2 2 2 5 6 6 . Corruption Purged 16 | . . . . . . . . 2 . . 14 . . . . . . . . . . . . . . . . Effects 252 | . 16 31 . . . . . 38 5 43 37 . . . . . . . . 3 26 12 23 6 8 4 . Message Errors 66 | . 4 7 . . . . . 12 1 9 8 . . . . . . . . . 9 5 8 . 2 1 . Matter Fused 41 | . 2 10 . . . . . 7 1 6 5 . . . . . . . . . . . 4 1 3 2 . Heat Flow Errors 31 | . 3 5 . . . . . 3 1 1 5 . . . . . . . . 1 5 1 4 . 2 . . Energy Discharges 42 | . 1 3 . . . . . 7 . 5 10 . . . . . . . . 2 7 2 4 . 1 . . Data Loss (minor) 35 | . 3 3 . . . . . 4 . 2 6 . . . . . . . . . 5 4 3 5 . . . Data Loss (major) 5 | . . 1 . . . . . . . 1 3 . . . . . . . . . . . . . . . . Misfires 6 | . 1 2 . . . . . 2 . . . . . . . . . . . . . . . . . 1 . Alerts 1 | . . . . . . . . . . 1 . . . . . . . . . . . . . . . . . Misdirections 16 | . . . . . . . . . 2 14 . . . . . . . . . . . . . . . . . Targeting Errors 8 | . 2 . . . . . . 2 . 4 . . . . . . . . . . . . . . . . . Weapon Failures 1 | . . . . . . . . 1 . . . . . . . . . . . . . . . . . . . Overload Shots . | . . . . . . . . . . . . . . . . . . . . . . . . . . . . Overflow Damage 2532 | . 2 . 15 12 . 48 85 371 . 58 93 . . . 82 . 435 54 . 115 545 169 132 159 2 155 . Projectiles 571 | . . . 10 . . . . 7 . . . . . . . . . 47 . 21 . 137 98 152 . 99 . Explosions 419 | . . . . 12 . 48 85 . . 21 . . . . . . . 7 . 94 21 32 34 7 2 56 . Melee 1542 | . 2 . 5 . . . . 364 . 37 93 . . . 82 . 435 . . . 524 . . . . . . Knockbacks 4 | . . . 2 . . 2 . . . . . . . . . . . . . . . . . . . . . Impact 2 | . . . . . . 2 . . . . . . . . . . . . . . . . . . . . . Kinetic 2 | . . . 2 . . . . . . . . . . . . . . . . . . . . . . . . Secondary . | . . . . . . . . . . . . . . . . . . . . . . . . . . . . Self-Inflicted Damage 692 | . . 48 . . . 165 216 . . 16 . . . . . . . . . 154 . . . 44 23 26 . Shots 22 | . . 1 . . . 4 5 . . 1 . . . . . . . . . 5 . . . 2 1 3 . Rammed 31 | . 5 3 6 2 . 5 9 . . . . . . . . . . . . 1 . . . . . . . Targets Rammed 32 | . 5 3 7 2 . 5 9 . . . . . . . . . . . . 1 . . . . . . . Kicked . | . . . . . . . . . . . . . . . . . . . . . . . . . . . . Crushed 1 | . . . 1 . . . . . . . . . . . . . . . . . . . . . . . . Highest Temperature 443 | 27 251 266 216 310 . 393 299 443 197 107 228 . . . 2 . 114 . 11 206 221 90 240 39 178 367 . Average Temperature 81 | 12 59 80 64 134 . 103 73 129 112 40 82 . . . 2 . 47 . 6 44 85 47 66 21 66 126 . Received Heat Transfer 2847 | . 264 . 48 105 . 324 909 378 . 39 . . . 18 . . 9 . 60 192 105 21 81 72 9 213 . Effects 16 | . . 1 . 3 . . 1 7 . . . . . . . . . . . . . . 2 . . 2 . Shutdowns 1 | . . . . . . . . 1 . . . . . . . . . . . . . . . . . . . Energy Bleed 6 | . . 1 . 3 . . . 2 . . . . . . . . . . . . . . . . . . . Interference 5 | . . . . . . . 1 2 . . . . . . . . . . . . . . 2 . . . . Matter Decay 1 | . . . . . . . . . . . . . . . . . . . . . . . . . . 1 . Short Circuit 2 | . . . . . . . . 2 . . . . . . . . . . . . . . . . . . . Damage (minor) 1 | . . . . . . . . . . . . . . . . . . . . . . . . . . 1 . Siege Activations . | . . . . . . . . . . . . . . . . . . . . . . . . . . . . Robots Corrupted 18 | . . . . . . . . . . . . . . . . . . 1 1 4 3 3 5 1 . . . Combat Hostiles 14 | . . . . . . . . . . . . . . . . . . 1 1 1 3 3 4 1 . . . Parts Fried 44 | . . . 2 1 . . . . . . . . . . . . . . 2 8 7 4 19 1 . . . Impact Corruptions 2 | . 1 . 1 . . . . . . . . . . . . . . . . . . . . . . . . Robots Melted . | . . . . . . . . . . . . . . . . . . . . . . . . . . . . Combat Hostiles . | . . . . . . . . . . . . . . . . . . . . . . . . . . . . Parts Melted 7 | . 1 . . . . . . . . . . . . . . . . . . . . . 4 2 . . . Heat Transferred 3630 | 148 782 . 150 50 . 150 . . . . . . . . . . . 150 . 150 200 325 1175 350 . . . Parts Sabotaged . | . . . . . . . . . . . . . . . . . . . . . . . . . . . . Parts Stolen . | . . . . . . . . . . . . . . . . . . . . . . . . . . . . Parts Stripped . | . . . . . . . . . . . . . . . . . . . . . . . . . . . . Power Chain Reactions 15 | . . . 2 1 . 1 . . . . . . . . . . . . . 9 1 . . 1 . . . Missiles Intercepted . | . . . . . . . . . . . . . . . . . . . . . . . . . . . . Alert | -11 -10 -10 -9 -9 -9 -8 -8 -7 -7 -7 -7 -7 -7 -6 -6 -6 -6 -6 -6 -6 -6 -5 -5 -5 -5 -5 -4 ------- Run | Scr Mat Min Mat Min Exi Min Mat Fac Was Fac Low Low Dat Pro Fac Was Fac Low Low Zio Dee Pro Fac Upp Upp War Pro Peak Influence 1127 | 10 206 242 594 363 . 272 1127 897 322 402 . . . . 460 176 563 . . . . . 440 . . . . Initial 512 | . 6 23 44 183 . . 12 512 297 33 . . . . 31 161 102 . . . . . . . . . . Average 271 | 3 105 91 377 194 . 113 385 629 217 123 . . . . 100 161 235 . . . . . 203 . . . . Maximum Alert Level 4 | . 1 1 2 1 . 1 4 3 1 2 . . . . 2 . 2 . . . . . 2 . . . . Low Security (%) 51 | 100 97 79 11 57 . 87 24 . 40 72 . . . . 92 100 60 . . . . . 53 . . . . Level 1 23 | . 2 20 38 42 . 12 44 22 59 3 . . . . . . 13 . . . . . 30 . . . . Level 2 15 | . . . 49 . . . 14 29 . 24 . . . . 7 . 25 . . . . . 15 . . . . Level 3 8 | . . . . . . . 11 48 . . . . . . . . . . . . . . . . . . . Level 4 . | . . . . . . . 5 . . . . . . . . . . . . . . . . . . . . Level 5 . | . . . . . . . . . . . . . . . . . . . . . . . . . . . . High Security . | . . . . . . . . . . . . . . . . . . . . . . . . . . . . Max Security . | . . . . . . . . . . . . . . . . . . . . . . . . . . . . Squads Dispatched 44 | . 3 . 3 . . . 7 10 . 3 . . . . 1 . 6 . . . . . 11 . . . . Investigation 14 | . 2 . . . . . 1 5 . 1 . . . . . . . . . . . . 5 . . . . Extermination 12 | . . . . . . . . 3 . . . . . . 1 . 5 . . . . . 3 . . . . Reinforcement 14 | . 1 . 3 . . . 4 1 . 1 . . . . . . 1 . . . . . 3 . . . . Assault 3 | . . . . . . . 2 1 . . . . . . . . . . . . . . . . . . . Garrison 1 | . . . . . . . . . . 1 . . . . . . . . . . . . . . . . . Intercept . | . . . . . . . . . . . . . . . . . . . . . . . . . . . . Construction Impeded 3 | . . . . . . . 1 . . . . . . . . . . . . . . . 2 . . . . Haulers Reinforced 1 | . . . . . . . . . . . . . . . . . . . . . . . 1 . . . . Stealth | -11 -10 -10 -9 -9 -9 -8 -8 -7 -7 -7 -7 -7 -7 -6 -6 -6 -6 -6 -6 -6 -6 -5 -5 -5 -5 -5 -4 --------- Run | Scr Mat Min Mat Min Exi Min Mat Fac Was Fac Low Low Dat Pro Fac Was Fac Low Low Zio Dee Pro Fac Upp Upp War Pro Distress Signals 15 | . 3 . 2 . . . 3 1 . . . . . . 1 . 2 . . . . . 3 . . . . Communications Jammed . | . . . . . . . . . . . . . . . . . . . . . . . . . . . . Distress Signals . | . . . . . . . . . . . . . . . . . . . . . . . . . . . . Times Spotted 421 | . 34 13 41 15 . 21 72 42 6 10 . 3 . 5 8 5 16 6 5 44 9 11 26 7 4 14 4 Peak Tracking Total 10 | . 5 3 10 4 . 6 5 7 5 5 . 2 . 3 2 5 5 5 3 5 6 4 6 5 5 8 2 Tactical Retreats 50 | . 1 1 3 . . 5 4 12 . . . . . 2 1 . 6 . . 8 1 1 3 . . 2 . Traps | -11 -10 -10 -9 -9 -9 -8 -8 -7 -7 -7 -7 -7 -7 -6 -6 -6 -6 -6 -6 -6 -6 -5 -5 -5 -5 -5 -4 ------- Run | Scr Mat Min Mat Min Exi Min Mat Fac Was Fac Low Low Dat Pro Fac Was Fac Low Low Zio Dee Pro Fac Upp Upp War Pro Traps Triggered 14 | . 9 . . . . . . 2 . . . . . . 1 . . . . . . . 2 . . . . Indirectly 2 | . . . . . . . . . . . . . . . . . . . . . . . 2 . . . . Trap Hack Attempts . | . . . . . . . . . . . . . . . . . . . . . . . . . . . . Triggered . | . . . . . . . . . . . . . . . . . . . . . . . . . . . . Disarmed . | . . . . . . . . . . . . . . . . . . . . . . . . . . . . Reprogrammed . | . . . . . . . . . . . . . . . . . . . . . . . . . . . . Reused 3 | . . . . 1 . . . . . . . . . . . . . . . . . 2 . . . . . Traps Extracted . | . . . . . . . . . . . . . . . . . . . . . . . . . . . . Installed 4 | . . . . 2 . . . . . . . . . . . . . . . . . 2 . . . . . Triggered 15 | . . . . 1 . . . . . . . . . . . . . . . . . 2 . . . 12 . Machines | -11 -10 -10 -9 -9 -9 -8 -8 -7 -7 -7 -7 -7 -7 -6 -6 -6 -6 -6 -6 -6 -6 -5 -5 -5 -5 -5 -4 ---------- Run | Scr Mat Min Mat Min Exi Min Mat Fac Was Fac Low Low Dat Pro Fac Was Fac Low Low Zio Dee Pro Fac Upp Upp War Pro Machines Disabled 24 | . 2 2 2 . . 1 10 . . 2 . . . . . . . . . 1 2 . 2 . . . . Max in Single Turn 2 | . 1 2 1 . . 1 2 . . 1 . . . . . . . . . 1 1 . 1 . . . . Garrison Access 6 | . . . . . . . 1 2 . 1 . . . . 1 . . . . . . . 1 . . . . Machines Sabotaged . | . . . . . . . . . . . . . . . . . . . . . . . . . . . . Garrisons Compromised . | . . . . . . . . . . . . . . . . . . . . . . . . . . . . Overloaded Fab Kills . | . . . . . . . . . . . . . . . . . . . . . . . . . . . . Fab Network Shutdowns 3 | . . . . . . . . . . 1 . . . . 1 . 1 . . . . . . . . . . Hacking | -11 -10 -10 -9 -9 -9 -8 -8 -7 -7 -7 -7 -7 -7 -6 -6 -6 -6 -6 -6 -6 -6 -5 -5 -5 -5 -5 -4 --------- Run | Scr Mat Min Mat Min Exi Min Mat Fac Was Fac Low Low Dat Pro Fac Was Fac Low Low Zio Dee Pro Fac Upp Upp War Pro Machines Accessed 104 | . 6 . 7 . 4 . 10 20 . 10 1 2 4 . 13 . 8 . 1 1 . . 11 . 1 5 . Terminals 59 | . 6 . 6 . . . 6 12 . 7 . 1 . . 8 . 6 . 1 . . . 6 . . . . Fabricators 13 | . . . . . . . . 3 . 2 . . . . 2 . 2 . . . . . 4 . . . . Repair Stations 3 | . . . . . . . 2 1 . . . . . . . . . . . . . . . . . . . Recycling Units 3 | . . . . . . . . 1 . . . . . . 2 . . . . . . . . . . . . Scanalyzers 3 | . . . 1 . . . 1 1 . . . . . . . . . . . . . . . . . . . Garrison Access 6 | . . . . . . . 1 2 . 1 . . . . 1 . . . . . . . 1 . . . . Total Hacks 394 | . 17 . 27 . 4 . 30 81 . 40 1 3 24 . 57 . 38 . 1 3 . . 56 . 1 11 . Successful 282 | . 6 . 14 . 4 . 21 58 . 34 1 3 24 . 45 . 23 . 1 3 . . 33 . 1 11 . Failed 110 | . 11 . 13 . . . 9 22 . 5 . . . . 12 . 15 . . . . . 23 . . . . Catastrophic 13 | . 1 . . . . . 1 6 . . . . . . 1 . . . . . . . 4 . . . . Database Lockouts 2 | . . . . . . . . 1 . 1 . . . . . . . . . . . . . . . . . Manual 178 | . 11 . 8 . . . 11 31 . 26 . . . . 36 . 25 . . 5 . . 24 . . 1 . Terminals 225 | . 17 . 21 . . . 19 49 . 30 . 2 . . 33 . 26 . 1 . . . 27 . . . . Fabricators 85 | . . . . . . . . 19 . 9 . . . . 17 . 12 . . . . . 28 . . . . Repair Stations 8 | . . . . . . . 6 2 . . . . . . . . . . . . . . . . . . . Recycling Units 7 | . . . . . . . . 1 . . . . . . 6 . . . . . . . . . . . . Scanalyzers 16 | . . . 6 . . . 3 7 . . . . . . . . . . . . . . . . . . . Garrison Access 8 | . . . . . . . 2 3 . 1 . . . . 1 . . . . . . . 1 . . . . Terminal Hacks 129 | . 3 . 6 . 4 . 10 20 . 12 1 3 24 . 14 . 10 . 1 3 . . 6 . 1 11 . Record 27 | . . . . . 4 . . . . . . 2 11 . . . . . 1 . . . . . . 9 . Part Schematic 24 | . . . . . . . . 6 . 2 . . 5 . 5 . 2 . . 3 . . 1 . . . . Robot Schematic 7 | . 1 . . . . . . . . 1 . . 5 . . . . . . . . . . . . . . Robot Analysis 3 | . . . 1 . . . 1 . . . . . . . 1 . . . . . . . . . . . . Prototype ID Bank 19 | . 1 . 3 . . . 3 4 . 1 . . 3 . 2 . 1 . . . . . 1 . . . . Open Door 5 | . . . . . . . . . . . 1 1 . . . . . . . . . . . . 1 2 . Branch Access Points 2 | . . . . . . . . 1 . 1 . . . . . . . . . . . . . . . . . Machine Index 3 | . . . . . . . . . . 1 . . . . 1 . 1 . . . . . . . . . . Terminal Index 4 | . 1 . . . . . . 1 . . . . . . 1 . . . . . . . 1 . . . . Fabricator Index 3 | . . . . . . . . 1 . . . . . . 1 . . . . . . . 1 . . . . Alert Level 2 | . . . . . . . 2 . . . . . . . . . . . . . . . . . . . . Unreport Threat 5 | . . . 1 . . . 1 1 . 2 . . . . . . . . . . . . . . . . . Locate Traps 15 | . . . 1 . . . 2 3 . 2 . . . . 1 . 4 . . . . . 2 . . . . Recall Investigation 1 | . . . . . . . . . . 1 . . . . . . . . . . . . . . . . . Recall Extermination 4 | . . . . . . . . 1 . . . . . . 1 . 2 . . . . . . . . . . Recall Reinforcements 1 | . . . . . . . . . . 1 . . . . . . . . . . . . . . . . . Hauler Manifests 1 | . . . . . . . 1 . . . . . . . . . . . . . . . . . . . . Zone Layout 3 | . . . . . . . . 2 . . . . . . 1 . . . . . . . . . . . . Fabricator Hacks 56 | . . . . . . . . 13 . 6 . . . . 12 . 7 . . . . . 18 . . . . Network Status 3 | . . . . . . . . 3 . . . . . . . . . . . . . . . . . . . Load Schematic 24 | . . . . . . . . 5 . 3 . . . . 5 . 3 . . . . . 8 . . . . Build 29 | . . . . . . . . 5 . 3 . . . . 7 . 4 . . . . . 10 . . . . Repair Station Hacks 7 | . . . . . . . 5 2 . . . . . . . . . . . . . . . . . . . Scan Component 4 | . . . . . . . 3 1 . . . . . . . . . . . . . . . . . . . Repair 3 | . . . . . . . 2 1 . . . . . . . . . . . . . . . . . . . Recycling Unit Hacks 1 | . . . . . . . . . . . . . . . 1 . . . . . . . . . . . . Retrieve Components 1 | . . . . . . . . . . . . . . . 1 . . . . . . . . . . . . Scanalyzer 15 | . . . 5 . . . 3 7 . . . . . . . . . . . . . . . . . . . Insert Component 7 | . . . 3 . . . 1 3 . . . . . . . . . . . . . . . . . . . Analyze 8 | . . . 2 . . . 2 4 . . . . . . . . . . . . . . . . . . . Garrison Access Hacks 4 | . . . . . . . . 1 . 1 . . . . 1 . . . . . . . 1 . . . . Seal Access 4 | . . . . . . . . 1 . 1 . . . . 1 . . . . . . . 1 . . . . Unauthorized Hacks 70 | . 3 . 3 . . . 3 15 . 15 . . . . 17 . 6 . . . . . 8 . . . . Terminals 45 | . 3 . 3 . . . 2 10 . 12 . . . . 9 . 3 . . . . . 3 . . . . Track 14 | . . . 1 . . . 1 3 . 5 . . . . 2 . 1 . . . . . 1 . . . . Assimilate 10 | . 2 . . . . . . 2 . 2 . . . . 3 . 1 . . . . . . . . . . Botnet 16 | . . . . . . . 1 4 . 4 . . . . 4 . 1 . . . . . 2 . . . . Disrupt 3 | . . . 1 . . . . 1 . 1 . . . . . . . . . . . . . . . . . Operators 2 | . 1 . 1 . . . . . . . . . . . . . . . . . . . . . . . . Fabricators 18 | . . . . . . . . 3 . 3 . . . . 4 . 3 . . . . . 5 . . . . Report 2 | . . . . . . . . . . . . . . . 1 . . . . . . . 1 . . . . Prioritize 4 | . . . . . . . . . . 1 . . . . 1 . 1 . . . . . 1 . . . . Siphon 12 | . . . . . . . . 3 . 2 . . . . 2 . 2 . . . . . 3 . . . . Repair Stations . | . . . . . . . . . . . . . . . . . . . . . . . . . . . . Recycling Units 5 | . . . . . . . . 1 . . . . . . 4 . . . . . . . . . . . . Reject 2 | . . . . . . . . . . . . . . . 2 . . . . . . . . . . . . Mask 3 | . . . . . . . . 1 . . . . . . 2 . . . . . . . . . . . . Scanalyzers . | . . . . . . . . . . . . . . . . . . . . . . . . . . . . Garrison Access 2 | . . . . . . . 1 1 . . . . . . . . . . . . . . . . . . . Jam 2 | . . . . . . . 1 1 . . . . . . . . . . . . . . . . . . . Data Cores Recovered 2 | . . . 2 . . . . . . . . . . . . . . . . . . . . . . . . Used . | . . . . . . . . . . . . . . . . . . . . . . . . . . . . Hacking Detections 70 | . 6 . 6 . . . 10 15 . 6 . . . . 9 . 7 . 1 . . . 10 . . . . Full Trace Events 10 | . 1 . . . . . . 3 . 1 . . . . . . . . . . . . 5 . . . . Feedback Events 2 | . . . . . . . . 1 . 1 . . . . . . . . . . . . . . . . . Corruption 2 | . . . . . . . . 1 . 1 . . . . . . . . . . . . . . . . . Feedback Blocked . | . . . . . . . . . . . . . . . . . . . . . . . . . . . . Robot Schematics Acquired 7 | . 1 . . . . . . . . 1 . . 5 . . . . . . . . . . . . . . Robots Built . | . . . . . . . . . . . . . . . . . . . . . . . . . . . . Matter . | . . . . . . . . . . . . . . . . . . . . . . . . . . . . Time . | . . . . . . . . . . . . . . . . . . . . . . . . . . . . Total Robot Build Rating . | . . . . . . . . . . . . . . . . . . . . . . . . . . . . Part Schematics Acquired 29 | . . . 2 . . . . 9 . 2 . . 5 . 5 . 2 . . 3 . . 1 . . . . Parts Built 28 | . . . . . . . . 5 . 4 . . . . 6 . 4 . . . . . 9 . . . . Matter 4110 | . . . . . . . . 795 . 470 . . . . 1007 . 715 . . . . . 1123 . . . . Time 1526 | . . . . . . . . 477 . 163 . . . . 314 . 189 . . . . . 383 . . . . Total Part Build Rating 139 | . . . . . . . . 30 . 16 . . . . 35 . 24 . . . . . 34 . . . . Parts Repaired 3 | . . . . . . . 2 1 . . . . . . . . . . . . . . . . . . . Time 96 | . . . . . . . 70 26 . . . . . . . . . . . . . . . . . . . Parts Recycled . | . . . . . . . . . . . . . . . . . . . . . . . . . . . . Recycled Matter . | . . . . . . . . . . . . . . . . . . . . . . . . . . . . Retrieved Matter . | . . . . . . . . . . . . . . . . . . . . . . . . . . . . Retrieved Components 3 | . . . . . . . . . . . . . . . 3 . . . . . . . . . . . . Parts Scanalyzed 6 | . . . 2 . . . 1 3 . . . . . . . . . . . . . . . . . . . Part Schematics Acquired 5 | . . . 2 . . . . 3 . . . . . . . . . . . . . . . . . . . Parts Damaged . | . . . . . . . . . . . . . . . . . . . . . . . . . . . . Bothacking | -11 -10 -10 -9 -9 -9 -8 -8 -7 -7 -7 -7 -7 -7 -6 -6 -6 -6 -6 -6 -6 -6 -5 -5 -5 -5 -5 -4 ------------ Run | Scr Mat Min Mat Min Exi Min Mat Fac Was Fac Low Low Dat Pro Fac Was Fac Low Low Zio Dee Pro Fac Upp Upp War Pro Used RIF Installer . | . . . . . . . . . . . . . . . . . . . . . . . . . . . . Robots Hacked 1 | . . . . . . . . . . . . . . . 1 . . . . . . . . . . . . Non-combat 1 | . . . . . . . . . . . . . . . 1 . . . . . . . . . . . . Combat . | . . . . . . . . . . . . . . . . . . . . . . . . . . . . Robot Hacks Applied 1 | . . . . . . . . . . . . . . . 1 . . . . . . . . . . . . find_chute 1 | . . . . . . . . . . . . . . . 1 . . . . . . . . . . . . Relay Couplers Released . | . . . . . . . . . . . . . . . . . . . . . . . . . . . . Robots Rewired 2 | . . . . . . . . . . . . . . . . . . 2 . . . . . . . . . Allies Hacked . | . . . . . . . . . . . . . . . . . . . . . . . . . . . . Hacks Repelled . | . . . . . . . . . . . . . . . . . . . . . . . . . . . . Allies | -11 -10 -10 -9 -9 -9 -8 -8 -7 -7 -7 -7 -7 -7 -6 -6 -6 -6 -6 -6 -6 -6 -5 -5 -5 -5 -5 -4 -------- Run | Scr Mat Min Mat Min Exi Min Mat Fac Was Fac Low Low Dat Pro Fac Was Fac Low Low Zio Dee Pro Fac Upp Upp War Pro Total Allies 36 | . . 5 . . . . . 2 19 2 . . . 1 2 . 1 2 . 2 . . . . . . . Largest Group 19 | . . 4 4 . . . . 1 19 2 2 2 2 2 3 2 1 2 2 2 . . . . . . . Highest-Rated Group 477 | . . 74 74 . . . . 26 477 36 36 36 36 120 78 52 26 45 45 188 . . . . . . . Highest-Rated Ally 94 | . . 31 31 . . . . 26 35 26 26 26 26 94 26 26 26 25 25 94 . . . . . . . Total Orders 9 | . . . . . . . . 2 . 4 . 2 . . . . . . . 1 . . . . . . . STAY 5 | . . . . . . . . 1 . 2 . 1 . . . . . . . 1 . . . . . . . FOLLOW 4 | . . . . . . . . 1 . 2 . 1 . . . . . . . . . . . . . . . Ally Attacks 321 | . . 5 68 . . . . . 94 . . . . 9 . . . . 4 141 . . . . . . . Total Damage 9243 | . . 44 948 . . . . . 3307 . . . . 391 . . . . 84 4469 . . . . . . . Kills 71 | . . 2 25 . . . . . 8 . . . . 1 . . . . 1 34 . . . . . . . Allies Corrupted . | . . . . . . . . . . . . . . . . . . . . . . . . . . . . Allies Melted . | . . . . . . . . . . . . . . . . . . . . . . . . . . . . Intel | -11 -10 -10 -9 -9 -9 -8 -8 -7 -7 -7 -7 -7 -7 -6 -6 -6 -6 -6 -6 -6 -6 -5 -5 -5 -5 -5 -4 ------- Run | Scr Mat Min Mat Min Exi Min Mat Fac Was Fac Low Low Dat Pro Fac Was Fac Low Low Zio Dee Pro Fac Upp Upp War Pro Robot Analysis Total 3 | . . . 1 . . . 1 . . . . . . . 1 . . . . . . . . . . . . Derelict Logs Recovered 14 | . . 2 . 2 . . . . . . 1 2 . 1 . . . 2 . 2 . . . 1 1 . . Drone Launches . | . . . . . . . . . . . . . . . . . . . . . . . . . . . . Drone Recoveries . | . . . . . . . . . . . . . . . . . . . . . . . . . . . . Exploration | -11 -10 -10 -9 -9 -9 -8 -8 -7 -7 -7 -7 -7 -7 -6 -6 -6 -6 -6 -6 -6 -6 -5 -5 -5 -5 -5 -4 ------------- Run | Scr Mat Min Mat Min Exi Min Mat Fac Was Fac Low Low Dat Pro Fac Was Fac Low Low Zio Dee Pro Fac Upp Upp War Pro Turns Passed 33575 | 90 1621 1177 1524 1398 763 1332 2165 2630 109 662 2019 540 32 298 1174 88 1501 788 551 4322 3256 904 2293 311 360 1243 424 Spaces Moved 22874 | 66 894 597 689 641 382 567 996 2334 141 711 1147 1104 85 452 1819 94 1163 923 626 2468 1753 500 1196 242 304 859 121 Core 2608 | 2 . . . . . . . 1807 141 637 . . . . . . . . . . . . . . . 1 20 Treads 5832 | . 385 597 689 641 382 567 372 22 . . . . . . . . . . . 1271 676 . 230 . . . . Legs 1893 | . . . . . . . . . . . . . . . . . . . . . 709 500 684 . . . . Wheels 3489 | 64 509 . . . . . 624 505 . . . . . . . . . . . . . . 282 242 304 858 101 Hover 4940 | . . . . . . . . . . . . . . . 569 94 1163 923 626 1197 368 . . . . . . Flight 4112 | . . . . . . . . . . 74 1147 1104 85 452 1250 . . . . . . . . . . . . Fastest Speed 32 | 50 80 160 180 200 200 200 120 50 50 32 32 32 32 32 32 76 76 76 76 76 56 150 100 110 110 110 120 Average Speed 107 | 85 120 176 193 200 200 200 152 67 50 48 32 32 32 32 45 76 76 76 76 136 147 150 151 110 110 126 298 Slowest Speed 2200 | 100 180 200 200 200 200 200 240 200 50 100 32 32 32 32 102 76 146 76 76 200 200 150 210 110 110 2200 1150 Overloaded Moves . | . . . . . . . . . . . . . . . . . . . . . . . . . . . . Propulsion Burnouts . | . . . . . . . . . . . . . . . . . . . . . . . . . . . . Robots Hopped 11 | . . . . . . . . . . . 1 1 . . 9 . . . . . . . . . . . . Cave-ins Triggered . | . . . . . . . . . . . . . . . . . . . . . . . . . . . . Exploration Rate (%) 65 | 4 96 97 63 98 71 98 75 56 77 18 98 85 69 67 25 94 29 88 81 86 83 56 23 44 53 89 21 Regions Visited 27 Branch Regions 17 Pre-discovered Areas 7 | . . 1 . . . . . . . . . . 1 1 . . . . . 3 . . . 1 . . . Known Exits Taken 16 | . . . . 1 . . . . . 1 1 1 1 1 . . 1 1 1 1 1 1 1 1 1 1 . Unknown Exits Taken 7 | 1 1 1 1 . 1 1 1 . . . . . . . . . . . . . . . . . . . . Scrap Searched 28 | . . 2 . 2 . 1 . . . . 3 6 . 1 . . . 2 4 3 . 1 . 2 1 . . Spaces Dug 67 | . 2 . . . . . 1 11 1 9 . 4 . 1 7 . 15 . . . . 1 15 . . . . Terrain Destroyed 802 | . 2 11 18 5 . 94 234 24 1 32 . 4 . 1 7 . 25 114 . 2 2 4 30 8 97 66 21 Melee 52 | . 1 . . . . . 1 10 1 9 . 4 . 1 7 . 12 . . . . 1 5 . . . . Projectile 89 | . 1 . . . . 8 . 2 . . . . . . . . 13 . . . 2 3 25 1 . 13 21 AOE 661 | . . 11 18 5 . 86 233 12 . 23 . . . . . . . 114 . 2 . . . 7 97 53 . Terrain Rammed . | . . . . . . . . . . . . . . . . . . . . . . . . . . . . Walls Destroyed . | . . . . . . . . . . . . . . . . . . . . . . . . . . . . Machines Disabled . | . . . . . . . . . . . . . . . . . . . . . . . . . . . . Actions | -11 -10 -10 -9 -9 -9 -8 -8 -7 -7 -7 -7 -7 -7 -6 -6 -6 -6 -6 -6 -6 -6 -5 -5 -5 -5 -5 -4 --------- Run | Scr Mat Min Mat Min Exi Min Mat Fac Was Fac Low Low Dat Pro Fac Was Fac Low Low Zio Dee Pro Fac Upp Upp War Pro Total 30624 | 88 1290 698 804 710 381 687 1427 3277 176 1001 2788 1281 89 603 2105 110 1706 991 688 3392 2392 632 1572 270 322 998 146 Wait 6137 | 1 255 77 21 27 . 49 186 756 33 257 1628 171 5 149 244 17 477 41 53 755 498 89 244 10 4 89 1 Move 22827 | 65 893 596 688 640 381 566 995 2334 140 710 1144 1101 84 451 1801 93 1162 922 625 2467 1752 499 1195 241 303 858 121 Hop 11 | . . . . . . . . . . . 1 1 . . 9 . . . . . . . . . . . . Pick Up 195 | 9 23 2 16 5 . 5 26 19 . 2 . . . . 7 . 6 1 . 15 26 8 11 . 3 11 . Fast Attach 77 | 3 3 . 3 . . . 7 11 1 3 4 2 . 1 8 . 1 . . 12 13 . 4 . . 1 . Attach 103 | 3 9 1 2 1 . 9 10 16 . 1 . . . . 2 . 4 . . 7 18 . 5 3 3 8 1 Detach 18 | . . . 1 . . . 3 2 . 1 1 . . . . . 2 . . 2 3 . 2 . . 1 . Swap 158 | 1 23 3 8 1 . 5 41 29 1 7 2 . . . . . 6 1 2 8 1 . 13 . . 6 . Drop 200 | 1 7 4 15 5 . 1 25 37 . 2 3 1 . 1 10 . 6 . . 20 41 8 6 . 2 5 . Fire 681 | 5 68 12 42 27 . 47 117 36 . 3 . . . . 1 . 13 16 8 105 19 24 87 16 7 19 9 Melee 169 | . 4 . . . . . 8 37 1 15 5 5 . 1 23 . 29 . . . 21 1 5 . . . 14 Ram . | . . . . . . . . . . . . . . . . . . . . . . . . . . . . Kick . | . . . . . . . . . . . . . . . . . . . . . . . . . . . . Crush 32 | . 5 3 7 2 . 5 9 . . . . . . . . . . . . 1 . . . . . . . Escape Stasis . | . . . . . . . . . . . . . . . . . . . . . . . . . . . . Rewire 12 | . . . 1 . . . . . . . . . . . . . . 10 . . . 1 . . . . . Trap 4 | . . . . 2 . . . . . . . . . . . . . . . . . 2 . . . . . Miscellaneous . | . . . . . . . . . . . . . . . . . . . . . . . . . . . . Route ------- -11/Scrapyard -10/Materials (discovered 5 exits: *Mat x3 / [*Min x2]) -10/Mines (discovered 2 exits: *Mat x2) -9/Materials (discovered 3 exits: *Mat x2 / [*Min]) -9/Mines (discovered 3 exits: *Mat x2 / *Exi) -9/Exiles -8/Mines (discovered 2 exits: *Mat x2) -8/Materials (discovered 3 exits: *Fac x2 / [*Sto]) -7/Factory (discovered 4 exits: *Fac x2 / *Low x2) -7/Waste -7/Factory (discovered 2 exits: *Low x2) -7/Lower Caves -7/Lower Caves -7/Data Miner -6/Proximity Caves -6/Factory -6/Waste -6/Factory (discovered 2 exits: *Fac / *Low) -6/Lower Caves -6/Lower Caves -6/Zion (discovered 2 exits: *Dee / *Pro) -6/Deep Caves -5/Proximity Caves -5/Factory (discovered 3 exits: *Upp x2 / *Ext) -5/Upper Caves -5/Upper Caves -5/Warlord -4/Proximity Caves History --------- Turn | Location | Event 7 | -11/Scrapyard | Discovered new exit (range 16) 91 | -11/Scrapyard | Entered Materials 301 | -10/Materials | Build established: Mutant 345 | -10/Materials | Discovered new exit (range 11) 533 | -10/Materials | Discovered new exit (range 6) 910 | -10/Materials | Discovered new exit (range 8) 946 | -10/Materials | Discovered new exit (range 10) 1222 | -10/Materials | Discovered new exit (range 4) 1712 | -10/Materials | Entered Mines 1806 | -10/Mines | Assembled infested the area 1811 | -10/Mines | Assisted by a Guerilla fighting off Assembled 1836 | -10/Mines | Joined a pair of Derelicts in attacking an 0b10 outpost 2332 | -10/Mines | Found a damaged Exp. Sensor Array with a note attached 2337 | -10/Mines | Found Prototype Device 2381 | -10/Mines | Assisted by bots powering up and referring to "LRC-V3" 2419 | -10/Mines | Discovered new exit (range 5) 2700 | -10/Mines | Discovered new exit (range 11) 2706 | -10/Mines | Learned location of Zion (-6) 2756 | -10/Mines | Learned Materials trap positions 2889 | -10/Mines | Entered Materials 2889 | -9/Materials | Accompanied by 4 allies 2889 | -9/Materials | Evolved 2 slots: Utility x2 2890 | -9/Materials | Loaded intel: 21 trap records 2894 | -9/Materials | Led the pair of lost Derelicts to an unsafe place 3211 | -9/Materials | Discovered new exit (range 11) 3314 | -9/Materials | Identified Exp. Sensor Array 3740 | -9/Materials | Build established: Hauler-Mutant 3786 | -9/Materials | Discovered new exit (range 10) 4122 | -9/Materials | Discovered new exit (range 16) 4413 | -9/Materials | Entered Mines 4530 | -9/Mines | Learned Materials interactive machine intel 4552 | -9/Mines | Found a hidden stash of uninstalled traps 4646 | -9/Mines | A weapon hastily lodged in a ceiling crevice suddenly fell to the ground 4860 | -9/Mines | Discovered new exit (range 6) 5043 | -9/Mines | Deemed a non-threat by the Exiles lab entrance 5576 | -9/Mines | Discovered new exit (range 6) 5613 | -9/Mines | Identified exit to Exiles 5811 | -9/Mines | Entered Exiles 5811 | -9/Exiles | Found Exiles lab abandoned 6558 | -9/Exiles | Discovered new exit (range 10) 6574 | -9/Exiles | Entered Mines 6732 | -8/Mines | Discovered new exit (range 10) 6862 | -8/Mines | Lost 5 parts (1p2n2u) 7306 | -8/Mines | Discovered new exit (range 5) 7906 | -8/Mines | Entered Materials 7906 | -8/Materials | Evolved 2 slots: Utility x1, Weapon x1 7907 | -8/Materials | Loaded intel: 19 interactive machine locations 7907 | -8/Materials | Discovered new exit (range 8) 8469 | -8/Materials | Repaired Minigun 8502 | -8/Materials | Repaired Autogun 8698 | -8/Materials | Discovered new exit (range 3) 8799 | -8/Materials | Build established: Hauler-Gunner 9549 | -8/Materials | Discovered new exit (range 12) 9906 | -8/Materials | First assault squad dispatched 9982 | -8/Materials | Destroyed 11 combat bots 10071 | -8/Materials | Entered Factory 10071 | -7/Factory | Evolved 2 slots: Utility x2 10242 | -7/Factory | Build established: Hauler-Mutant 11034 | -7/Factory | Discovered new exit (range 15) 11095 | -7/Factory | Lost 4 parts (1u3w) 11142 | -7/Factory | Discovered new exit (range 15) 11149 | -7/Factory | Identified exit to Factory 11407 | -7/Factory | Identified exit to Lower Caves 11560 | -7/Factory | Fabricated Adv. Hacking Suite? 11623 | -7/Factory | Build established: Hacker-Mutant 11671 | -7/Factory | First assault squad dispatched 11875 | -7/Factory | Core integrity fell below 50% 12026 | -7/Factory | Repaired Exp. Sensor Array 12389 | -7/Factory | Fabricated Adv. Hacking Suite? 12398 | -7/Factory | Fabricated Adv. Hacking Suite? 12505 | -7/Factory | Fabricated Adv. System Shield? 12515 | -7/Factory | Fabricated Adv. System Shield? 12531 | -7/Factory | Discovered exit to Factory (range 14) 12606 | -7/Factory | Central database locked down 12701 | -7/Factory | Sucked down chute 12701 | -7/Factory | Entered Waste 12716 | -7/Waste | EMP discharged 12716 | -7/Waste | System corruption reached 10% 12724 | -7/Waste | Spotted C-40 Crusher 12725 | -7/Waste | Spotted C-40 Crusher 12726 | -7/Waste | Spotted C-40 Crusher 12729 | -7/Waste | Spotted C-40 Crusher 12729 | -7/Waste | Spotted C-40 Crusher 12739 | -7/Waste | Met Warlord forces unprepared to attack 12746 | -7/Waste | Allies destroyed C-40 Crusher 12756 | -7/Waste | Allies destroyed C-40 Crusher 12771 | -7/Waste | Allies destroyed C-40 Crusher 12779 | -7/Waste | Spotted C-40 Crusher 12804 | -7/Waste | Discovered new exit (range 13) 12809 | -7/Waste | Identified exit to Factory 12810 | -7/Waste | Entered Factory 12910 | -7/Factory | Central database locked down 13052 | -7/Factory | Fabricated Imp. System Backup Module (x2) 13093 | -7/Factory | Fabricated Imp. VTOL Module? 13115 | -7/Factory | Fabricated Imp. VTOL Module (x1) 13313 | -7/Factory | Local fabrication network quarantined 13472 | -7/Factory | Entered Lower Caves 13472 | -7/Lower Caves | Accompanied by 2 allies 13760 | -7/Lower Caves | Build established: Hacker-Sprinter 15127 | -7/Lower Caves | Learned Factory trap positions 15141 | -7/Lower Caves | Encountered a Warlord checkpoint 15285 | -7/Lower Caves | Discovered new exit (range 8) 15289 | -7/Lower Caves | Identified exit to Lower Caves 15491 | -7/Lower Caves | Entered another Lower Caves area 15491 | -7/Lower Caves | Accompanied by 2 allies 15499 | -7/Lower Caves | Found Alien Artifact 15499 | -7/Lower Caves | Identified Core Expander 15499 | -7/Lower Caves | Installed Core Expander, added new Weapon slot 15589 | -7/Lower Caves | Encountered a Warlord checkpoint 15616 | -7/Lower Caves | Discovered new exit (range 10) 15619 | -7/Lower Caves | Identified exit to Data Miner 15897 | -7/Lower Caves | Learned Factory security intel 15970 | -7/Lower Caves | Learned Factory garrison access intel 16031 | -7/Lower Caves | Entered Data Miner 16031 | -7/Data Miner | Accompanied by 2 allies 16031 | -7/Data Miner | Discovered new exit (range 6) 16038 | -7/Data Miner | Met Data Miner 16044 | -7/Data Miner | Learned location of Section 7 (-2) 16044 | -7/Data Miner | Acquired the access code to Warlord's prototype stash 16049 | -7/Data Miner | Received God Mode back door access code from Data Miner 16058 | -7/Data Miner | Identified exit to Proximity Caves 16063 | -7/Data Miner | Entered Proximity Caves 16063 | -6/Proximity Caves | Accompanied by 2 allies 16093 | -6/Proximity Caves | Spotted B-75 Beast 16095 | -6/Proximity Caves | Escorted by Enhanced Grunt 16178 | -6/Proximity Caves | Attracted the attention of an 0b10 checkpoint 16338 | -6/Proximity Caves | Discovered exit to Factory (range 13) 16361 | -6/Proximity Caves | Entered Factory 16361 | -6/Factory | Accompanied by 1 ally 16361 | -6/Factory | Evolved 2 slots: Utility x2 16362 | -6/Factory | Loaded intel: 98 trap records 16364 | -6/Factory | Loaded intel: 3 garrison access locations 16675 | -6/Factory | Build established: Wizard-Sprinter 16971 | -6/Factory | Fabricated Tesla Bomb Launcher? 16998 | -6/Factory | Fabricated Cmb. Gravmag System (x2) 17038 | -6/Factory | Fabricated Imp. Powered Armor? 17067 | -6/Factory | Fabricated Tesla Bomb Launcher? 17290 | -6/Factory | Build established: Wizard-Gladiator 17368 | -6/Factory | Found Launcher Loader 17448 | -6/Factory | Local fabrication network quarantined 17484 | -6/Factory | Fabricated F-cell Engine (x1) 17535 | -6/Factory | Manually triggered Chute Trap 17535 | -6/Factory | Sucked down chute 17535 | -6/Factory | Entered Waste 17551 | -6/Waste | Spotted C-40 Crusher 17556 | -6/Waste | Spotted C-40 Crusher 17560 | -6/Waste | Spotted C-40 Crusher 17590 | -6/Waste | 3 allies followed down the chute 17592 | -6/Waste | Spotted C-40 Crusher 17593 | -6/Waste | Spotted C-40 Crusher 17596 | -6/Waste | Spotted C-40 Crusher 17612 | -6/Waste | Discovered new exit (range 10) 17622 | -6/Waste | Identified exit to Factory 17623 | -6/Waste | Entered Factory 18260 | -6/Factory | Discovered new exit (range 8) 18263 | -6/Factory | Identified exit to Factory 18309 | -6/Factory | Discovered new exit (range 13) 18320 | -6/Factory | Identified exit to Lower Caves 18342 | -6/Factory | Spotted B-75 Beast 18397 | -6/Factory | Fabricated Adv. Cooling System? 18496 | -6/Factory | Fabricated Mni. Smartbomb Launcher? 18527 | -6/Factory | Fabricated Lrn. Proton Cannon? 18693 | -6/Factory | Fabricated Lrn. Proton Cannon? 18735 | -6/Factory | Local fabrication network quarantined 18967 | -6/Factory | Build established: Wizard-Mutant 19124 | -6/Factory | Entered Lower Caves 19542 | -6/Lower Caves | Attacked by a faux Warlord 19746 | -6/Lower Caves | Discovered new exit (range 7) 19750 | -6/Lower Caves | Identified exit to Lower Caves 19912 | -6/Lower Caves | Entered another Lower Caves area 19912 | -6/Lower Caves | Accompanied by 2 allies 20035 | -6/Lower Caves | Attracted the attention of an 0b10 checkpoint 20442 | -6/Lower Caves | Discovered new exit (range 7) 20460 | -6/Lower Caves | Identified exit to Zion 20463 | -6/Lower Caves | Entered Zion 20463 | -6/Zion | Accompanied by 1 ally 20559 | -6/Zion | Discovered new exit (range 8) 20565 | -6/Zion | Identified exit to Proximity Caves 20675 | -6/Zion | Learned Factory garrison access intel 20812 | -6/Zion | Learned location of Quarantine (-3) 20817 | -6/Zion | Received a hallucinogenic algorithm 20923 | -6/Zion | Learned 4 Factory zone layouts 20929 | -6/Zion | Given A8's code to call for help 21009 | -6/Zion | Found CR-A16's Pointy Stick 21168 | -6/Zion | Enhanced Grunt warped into view, answering call for help 21171 | -6/Zion | Enhanced Grunt warped into view, answering call for help 22236 | -6/Zion | Build established: Machinist-Mutant 22684 | -6/Zion | Attacked by Zionites 22906 | -6/Zion | Allies destroyed Imprinter 22911 | -6/Zion | Extracted access codes from Imprinter's data core 24507 | -6/Zion | Build established: Scavenger-Mutant 24740 | -6/Zion | Opened final containment barrier to the Deep Caves 24776 | -6/Zion | Discovered new exit (range 3) 24776 | -6/Zion | Saw the warning signs outside the Deep Caves entrance 24782 | -6/Zion | Identified exit to Deep Caves 24785 | -6/Zion | Entered Deep Caves 25234 | -6/Deep Caves | Found Prototype Protection 25235 | -6/Deep Caves | Identified Zio. Weapon Casing 25315 | -6/Deep Caves | Found Prototype Protection 25315 | -6/Deep Caves | Identified Zio. Heavy Carapace 25382 | -6/Deep Caves | Found Zio. Weapon Casing 25726 | -6/Deep Caves | Build established: Scavenger-Tank 25763 | -6/Deep Caves | Discovered new exit (range 7) 26001 | -6/Deep Caves | Spotted as-44138 26011 | -6/Deep Caves | Destroyed as-44138 26344 | -6/Deep Caves | Exposed GOLEM chamber 26346 | -6/Deep Caves | Found Unknown Device 26350 | -6/Deep Caves | Found Unknown Device 26354 | -6/Deep Caves | Found Unknown Device 26411 | -6/Deep Caves | Identified GOLEM Unit (x3) 26699 | -6/Deep Caves | Build established: Golem 27180 | -6/Deep Caves | Build established: Mutant 27665 | -6/Deep Caves | Identified exit to Proximity Caves 28041 | -6/Deep Caves | Entered Proximity Caves 28800 | -5/Proximity Caves | Discovered exit to Factory (range 16) 28927 | -5/Proximity Caves | Spotted B-75 Beast 28945 | -5/Proximity Caves | Entered Factory 28945 | -5/Factory | Evolved 2 slots: Propulsion x2 28946 | -5/Factory | Identified exit to Upper Caves 28946 | -5/Factory | Identified exit to Extension 28948 | -5/Factory | Loaded intel: 4 garrison access locations 29617 | -5/Factory | Build established: Wizard-Mutant 29700 | -5/Factory | Discovered exit to Upper Caves (range 14) 30231 | -5/Factory | Incoming investigation squad redirected 30488 | -5/Factory | Build established: Hacker-Mutant 30630 | -5/Factory | Fabricated Arm. Huge Wheel? 30811 | -5/Factory | Fabricated Hcp. Storage Unit (x1) 30840 | -5/Factory | Fabricated Hcp. Storage Unit (x1) 30847 | -5/Factory | Fabricated Imp. Powered Armor (x1) 30888 | -5/Factory | Fabricated Mni. Smartbomb Launcher (x1) 30968 | -5/Factory | Fabricated Exp. Signal Interpreter? 31125 | -5/Factory | Fabricated Hcp. Storage Unit (x1) 31130 | -5/Factory | Incoming investigation squad redirected 31172 | -5/Factory | Incoming investigation squad redirected 31173 | -5/Factory | Fabricated Imp. Powered Armor (x1) 31238 | -5/Factory | Entered Upper Caves 31302 | -5/Upper Caves | Lost 4 parts (1p1u2w) 31337 | -5/Upper Caves | Encountered a Warlord checkpoint 31477 | -5/Upper Caves | Spotted B-75 Beast 31514 | -5/Upper Caves | Discovered new exit (range 12) 31530 | -5/Upper Caves | Identified exit to Upper Caves 31549 | -5/Upper Caves | Entered another Upper Caves area 31822 | -5/Upper Caves | Identified exit to Warlord 31909 | -5/Upper Caves | Entered Warlord 31957 | -5/Warlord | Discovered new exit (range 8) 32008 | -5/Warlord | System corruption cleaned by Quarantine Array 32345 | -5/Warlord | Visited the Vortex Lab 32357 | -5/Warlord | Met EX-DEC 32360 | -5/Warlord | Found Prototype Energy Cannon 32361 | -5/Warlord | Warlord's base attacked by MAIN.C 32364 | -5/Warlord | Found Prototype Energy Cannon 32365 | -5/Warlord | Identified Vortex Driver 32370 | -5/Warlord | Found Prototype Energy Gun 32371 | -5/Warlord | Identified Vortex Rail 32435 | -5/Warlord | Met Warlord 32447 | -5/Warlord | Opened Warlord's prototype stash 32451 | -5/Warlord | Found Prototype Reactor 32457 | -5/Warlord | Found Prototype Device 32458 | -5/Warlord | Identified Exp. Phase Shifter 32501 | -5/Warlord | Found Prototype Processor 32507 | -5/Warlord | Found Prototype Hackware 32711 | -5/Warlord | Warlord forces counterattacked 32800 | -5/Warlord | Build established: Machinist-Mutant 32825 | -5/Warlord | Opened side exit 32844 | -5/Warlord | Spotted Executioner 32860 | -5/Warlord | Destroyed Executioner 32908 | -5/Warlord | Spotted B-86 Titan 32913 | -5/Warlord | Spotted B-86 Titan 33036 | -5/Warlord | Warlord base infiltrated, sounded retreat 33098 | -5/Warlord | Spotted Executioner 33104 | -5/Warlord | Spotted Striker 33115 | -5/Warlord | Destroyed Executioner 33121 | -5/Warlord | Destroyed Striker 33146 | -5/Warlord | Destroyed 8 combat bots 33151 | -5/Warlord | Identified exit to Proximity Caves 33152 | -5/Warlord | Entered Proximity Caves 33153 | -4/Proximity Caves | Lost 4 parts (1p1n2w) 33326 | -4/Proximity Caves | Core integrity fell below 50% 33366 | -4/Proximity Caves | Lost 9 parts (2n7u) 33576 | -4/Proximity Caves | Self-destructed Last Messages --------------- 33322_ Penetrated by Slug. 33328_ Slug penetrates Earth. 33332_ Slug penetrates Wall. 33332_ Adv. Hacking Suite destroyed. 33335_ Penetrated by Slug. 33335_ Slug penetrates Wall. 33335_ Penetrated by Slug. 33335_ Slug penetrates Wall. 33335_ Adv. Hacking Suite destroyed. 33338_ Penetrated by Slug. 33343_ H-77 Assassin destroyed. 33346_ Acquired 41 matter. 33348_ Myomer Leg fries itself beyond repair. 33349_ Imp. Phase Shifter fries itself beyond repair. 33350_ Coil Gun fries itself beyond repair. 33357_ Acquired 45 matter. 33553_ Penetrated by Slug. 33570_ Slug penetrates Wall. 33573_ CR-A16's Pointy Stick destroyed. 33573_ Slug penetrates Wall. Map ----- +----------------------------------------------------+ | ?????????????????????????????????????????????????? | | ?????????????????????????????????????????????????? | | ?????????????????????????????????????????????????? | | ?????????????????????????????????????????????????? | | ?????????????????????????????????????????????????? | | ?????????????????????????????????????????????????? | | ?????????????????????????????????????????????????? | | ?????????????????????????????????????????????????? | | ??????????????????????? ?????????????????????? | | ??????????????????????? ?????????????????????? | | ??????????????????????? ?????????????????????? | | ??????????????????????? ?????????????????????? | | ???????????????????????# ?????????????????????? | | ??????????????????????## ?????????????????????? | | ??????????????????????# ??????????????????????? | | ?????????????????????? ??????????????????????? | | ?????????????????????? ??????????????????????? | | ??????????????????????? ??????????????????????? | | ??????????????????????? ??????????????????????? | | ???????????????????????# ??????????????????????? | | ???????????????????????#hh#??????????????????????? | | ??????????????????????## #??????????????????????? | | ??????????????????????# #??????????????????????? | | ??????????????????????# #??????????????????????? | | ??????????????????????# #??????????????????????? | | ??????????????????????# @##?????????????????????? | | ?????????????????????## ###???????????????????? | | ?????????????????????# ##??????????????????? | | ?????????????????????# #??????????????????? | | ?????????????????????## ##??????????????????? | | ?????????????????????# ####???????????????????? | | ?????????????????????# ###??????????????????????? | | ?????????????????????# #????????????????????????? | | ?????????????????????# #????????????????????????? | | ???????????????????### #????????????????????????? | | ?????????????????### #????????????????????????? | | ???????? #???????# #????????????????????????? | | ??????? #??????# ####???????????????????????? | | ???????? ????# % #???????????????????????? | | ???????# ### #???????????????????????? | | ???????# ##???????????????????????? | | ???????# ## #???????????????????????? | | ???????## ##??## #???????????????????????? | | ????????# ?????## #???????????????????????? | | ????????# ?????## ??????????????????????? | | ?????????? ???### ## ?????????????????????? | | ??????????# #??## ###????????????????????? | | ??????????# #### ##????????????????????? | | ?????????## #????????????????????? | | ????????## ## ##????????????????????? | +----------------------------------------------------+ Best States ------------- Heat Dissipation 68 Energy Generation 27 Energy Capacity 1325 Matter Stores 300 Matter Capacity 300 Sight Range 16 Robot Scan Range 30 Terrain Scan Density 10 Additional Mass Support 10 Armor Coverage 1750 Resistance: KI 15 Resistance: TH 15 Resistance: EX 15 Resistance: EM 15 Resistance: I 15 Resistance: S 15 Resistance: P 15 Weapon Shielding 100 Phase Shifting 20 Evasion (%) 63 Targeting Accuracy 8 Melee Accuracy 20 Recoil Reduction 2 Salvage Targeting 4 Offensive Hacking 42 Defensive Hacking 28 Item Schematics ----------------- Hacking Suite | -9/Materials | Scanalyzed Med. Storage Unit | -9/Materials | Scanalyzed Adv. Hacking Suite | -7/Factory | Hacked Hcp. Storage Unit | -7/Factory | Scanalyzed System Backup Module | -7/Factory | Scanalyzed System Shield | -7/Factory | Scanalyzed Adv. System Shield | -7/Factory | Hacked Fusion Compressor | -7/Factory | Hacked Arm. Huge Wheel | -7/Factory | Hacked Imp. VTOL Module | -7/Factory | Hacked Plasma Cannon | -7/Factory | Hacked Imp. System Backup Module | -7/Factory | Hacked Hvy. Machine Gun | -7/Factory | Hacked Combat Drone Bay | -7/Data Miner | Free Lgt. Regenerative Plating | -7/Data Miner | Free Cmb. Gravmag System | -7/Data Miner | Free Exp. Terrain Scanner | -7/Data Miner | Free Mni. Smartbomb Launcher | -7/Data Miner | Free Biomechanical Wings | -6/Factory | Hacked Mic. Fission Core | -6/Factory | Hacked Imp. Powered Armor | -6/Factory | Hacked Tesla Bomb Launcher | -6/Factory | Hacked F-cell Engine | -6/Factory | Hacked Adv. Cooling System | -6/Factory | Hacked Lrn. Proton Cannon | -6/Factory | Hacked Battle Cannon | -6/Zion | Free Flamer | -6/Zion | Free Ripper | -6/Zion | Free Exp. Signal Interpreter | -5/Factory | Hacked Robot Schematics ------------------ G-34 Mercenary | -10/Materials | Hacked H-55 Commando | -7/Factory | Hacked S-27 Virus | -7/Data Miner | Free G-50 Soldier | -7/Data Miner | Free H-66 Slayer | -7/Data Miner | Free I-36 Angel | -7/Data Miner | Free I-47 Archangel | -7/Data Miner | Free Fabricated ------------ Adv. Hacking Suite | x1 | -7/Factory Adv. Hacking Suite | x1 | -7/Factory Adv. Hacking Suite | x1 | -7/Factory Adv. System Shield | x1 | -7/Factory Adv. System Shield | x1 | -7/Factory Imp. System Backup Module | x2 | -7/Factory Imp. VTOL Module | x1 | -7/Factory Imp. VTOL Module | x1 | -7/Factory Tesla Bomb Launcher | x1 | -6/Factory Cmb. Gravmag System | x2 | -6/Factory Imp. Powered Armor | x1 | -6/Factory Tesla Bomb Launcher | x1 | -6/Factory F-cell Engine | x1 | -6/Factory Adv. Cooling System | x1 | -6/Factory Mni. Smartbomb Launcher | x1 | -6/Factory Lrn. Proton Cannon | x1 | -6/Factory Lrn. Proton Cannon | x1 | -6/Factory Arm. Huge Wheel | x2 | -5/Factory Hcp. Storage Unit | x1 | -5/Factory Hcp. Storage Unit | x1 | -5/Factory Imp. Powered Armor | x1 | -5/Factory Mni. Smartbomb Launcher | x1 | -5/Factory Exp. Signal Interpreter | x1 | -5/Factory Hcp. Storage Unit | x1 | -5/Factory Imp. Powered Armor | x1 | -5/Factory Alien Tech Used ----------------- Core Expander Achievements -------------- None Challenges ------------ None Game ------ Seed SalvageGreatBoregun Manual? 0 Play Time 05:53:43 Cumulative 343.6 hours Start 2021.02.20 @ 00:49:19 End 2021.02.20 @ 17:43:30 Sessions 7 Manual Loads 0 Difficulty Rogue Special Mode None Game No. 118 Rogue 114 Adventurer 4 Explorer 0 Win Type - Total 8 Types 4/1/3/0/0/0/0/0/0 Lore% 75 Gallery% 80 Achievement% 64 Wizard Run 0 Options --------- ASCII 1 Keyboard 0 Movement Arrows Keybinds 0 Fullscreen 1 Font 18/SmallcapsGlow Map View 76x50 Tactical HUD 1 Map Filters NONE Filters NONE Steam 1 RUN: e2f7aea9-694d-412c-b8c2-560279ba9343